Cogmind - Beta 17 @@@ ROGUE MODE // 2026.08.12 @ 12:57:48 Player: Scuttle Result: Destroyed by Enhanced Grunt with Neutron Cannon Performance ------------- Evolutions (3) 1500 Regions Visited (11) 2200 Robots Destroyed (203) 1015 Value Destroyed (6275) 6275 Prototype IDs (239) 4780 Alien Tech Used (0) 0 Bonus (3983) 3983 TOTAL SCORE: 19753 Bonus ------- High Alert Combat Kills 288 Follower Combat Kills 95 Aligned with FarCom 300 Met Data Miner 300 Used Data Conduit 3000 Cogmind --------- Core Integrity 0/700 Matter 290/300 Energy 265/325 System Corruption 30% Temperature Cool (0) Movement Walking (120) Location -7/Data Miner Parts ------- > --- POWER (1) -------- Antimatter Reactor > --- PROPULSION (4) --- Enhanced Flexi-carbon Leg Enhanced Flexi-carbon Leg Enhanced Flexi-carbon Leg Enhanced Flexi-carbon Leg > --- UTILITY (5) ------ High-capacity Storage Unit Makeshift Salvage Targeting Computer Advanced Targeting Computer Hardened Medium Armor Plating Layered Medium Armor Plating > --- WEAPON (3) ------- Powered Hammer > --- INVENTORY (20) --- Coolant Injector Coolant Injector Modified TNC 0b10 Alert Chip Armor Integrity Analyzer Matter Filter Hardened Medium Armor Plating Hardlight Generator Spread Laser Advanced Beam Cannon Rocket Array Peak State ------------ > --- POWER ------------ Antimatter Reactor > --- PROPULSION ------- Enhanced Flexi-carbon Leg Enhanced Flexi-carbon Leg Enhanced Flexi-carbon Leg Enhanced Flexi-carbon Leg > --- UTILITY ---------- High-capacity Storage Unit Makeshift Salvage Targeting Computer Advanced Targeting Computer Hardened Medium Armor Plating Layered Medium Armor Plating > --- WEAPON ----------- Powered Hammer > --- INVENTORY -------- Coolant Injector Coolant Injector Modified TNC 0b10 Alert Chip Armor Integrity Analyzer Matter Filter Hardened Medium Armor Plating Hardlight Generator Spread Laser Advanced Beam Cannon Rocket Array [Rating: 59] Favorites ----------- Power Heavy Ion Engine Engine Heavy Ion Engine Power Core Light Nuclear Core Reactor Antimatter Reactor Propulsion Light Treads Treads Light Treads Leg Enhanced Flexi-carbon Leg Utility High-capacity Storage Unit Device Improved Cooling System Storage High-capacity Storage Unit Processor Core Analyzer Protection Hardened Medium Armor Plating Weapon Spread Laser Energy Gun Spread Laser Energy Cannon Advanced Beam Cannon Ballistic Gun Gauss Rifle Launcher Mini Grenade Launcher Impact Weapon Powered Hammer Build | -11 -10 -10 -9 -9 -9 -8 -8 -7 -7 -7 -7 ------- Run | Yrd Mat Min Mat Min Exi Min Mat Fac Low Low Dat Slots Evolved 6 | . . . 2 . . . 2 2 . . . Power . | . . . . . . . . . . . . Propulsion 2 | . . . 1 . . . 1 . . . . Utility 3 | . . . 1 . . . . 2 . . . Weapon 1 | . . . . . . . 1 . . . . Parts Attached 125 | 6 11 2 27 1 2 . 31 24 1 9 11 Power 14 | 1 1 1 4 . . . 2 2 1 1 1 Engine 12 | 1 1 1 4 . . . 2 2 1 . . Core 1 | . . . . . . . . . . 1 . Reactor 1 | . . . . . . . . . . . 1 Propulsion 39 | 2 2 . 11 . . . 13 4 . 3 4 Treads 35 | 2 2 . 11 . . . 13 4 . 3 . Leg 4 | . . . . . . . . . . . 4 Wheel . | . . . . . . . . . . . . Hover . | . . . . . . . . . . . . Flight . | . . . . . . . . . . . . Utility 38 | 1 3 . 7 . 2 . 7 13 . 3 2 Device 12 | 1 . . 3 . 1 . 3 3 . 1 . Storage 6 | . 3 . 1 . 1 . 1 . . . . Processor 8 | . . . . . . . . 7 . 1 . Hackware . | . . . . . . . . . . . . Protection 12 | . . . 3 . . . 3 3 . 1 2 Artifact . | . . . . . . . . . . . . Weapon 34 | 2 5 1 5 1 . . 9 5 . 2 4 Energy Gun 20 | . 4 . 5 . . . 5 1 . 1 4 Energy Cannon 2 | . . . . . . . 1 . . 1 . Ballistic Gun 9 | 2 1 1 . . . . 2 3 . . . Ballistic Cannon . | . . . . . . . . . . . . Launcher 2 | . . . . 1 . . 1 . . . . Special Weapon . | . . . . . . . . . . . . Impact Weapon 1 | . . . . . . . . 1 . . . Slashing Weapon . | . . . . . . . . . . . . Piercing Weapon . | . . . . . . . . . . . . Special Melee Weapon . | . . . . . . . . . . . . Unidentified Prototypes 3 | . . . . . . . 2 1 . . . Corrupted Parts 4 | . . . . . . . . . . . 4 System Corruption 25 | . . . . . . . . . . . 25 Parts Lost 27 | . 1 3 2 . . . 6 4 1 1 9 Power 4 | . . 1 1 . . . . . 1 . 1 Propulsion 5 | . . . 1 . . . 2 1 . . 1 Utility 9 | . . 1 . . . . 3 2 . 1 2 Weapon 9 | . 1 1 . . . . 1 1 . . 5 Highest Loss Streak 7 | . 1 3 2 . . . 2 2 1 1 7 To Critical Strikes 1 | . 1 . . . . . . . . . . Average Backups 14 | 1 2 2 7 15 15 16 16 19 19 17 14 Power 1 | . 1 . 1 2 2 2 1 2 1 . . Propulsion 1 | . . . 1 2 1 1 . 2 3 1 . Utility 4 | . . 1 . 3 4 6 6 5 7 8 8 Weapon 6 | . . . 3 8 7 7 8 9 7 6 5 Tool/Special . | . . . . . . . . . . . . Unused Backups 21 | . 1 . 6 . . . 3 4 . . 7 Power 3 | . . . 2 . . . . 1 . . . Propulsion 2 | . . . 1 . . . 1 . . . . Utility 10 | . 1 . 1 . . . . 1 . . 7 Weapon 6 | . . . 2 . . . 2 2 . . . Tool/Special . | . . . . . . . . . . . . Average Slot Usage (%) 96 | . 98 89 88 100 98 88 98 99 99 93 78 Engine 9 | . 13 12 10 11 11 11 9 7 6 5 . Treads 31 | . 27 28 31 33 33 33 34 30 30 27 13 Device 9 | . 14 6 11 11 11 11 8 6 7 6 5 Storage 9 | . 13 14 11 11 11 11 9 7 7 6 7 Processor 4 | . . . . . . . . 14 15 14 15 Protection 6 | . . . 2 11 9 . 8 6 6 6 6 Energy Gun 16 | . 12 22 19 22 22 21 19 12 7 7 6 Ballistic Gun 7 | . 15 6 1 . . . 7 8 15 13 4 Peak Build Rating 59 | 6 7 7 17 17 22 17 35 53 51 51 59 Average Rating 29 | 4 6 6 12 17 17 17 30 48 50 45 39 On Entrance 21 | . 6 7 6 17 17 17 17 31 50 50 39 Avg Prop Armor Cover (%) 4 | . . . . . . . . 5 . . 3 Naked Turns . | . . . . . . . . . . . . Heaviest Build 75 | 8 28 28 42 42 55 55 67 69 65 68 75 Greatest Support 112 | 40 40 40 60 60 60 60 85 112 112 112 84 Greatest Overweight (x) 16 | . . . . . . . 1 . . 1 16 Average Overweight (x) . | . . . . . . . . . . . . Largest Inventory Capacity 20 | 5 15 15 15 15 20 20 20 20 20 20 20 Average Capacity 18 | 5 13 15 15 15 15 20 20 20 20 19 20 Most Carried 20 | 2 5 4 15 15 16 16 20 20 20 20 15 Average Carried 14 | 1 2 2 7 15 15 16 16 19 19 17 14 Final Capacity 20 | 5 15 15 15 15 20 20 20 20 20 20 20 Final Carried 19 | 2 4 1 15 15 16 16 19 19 19 15 11 Class Distribution -------------------- 29% | Scavenger-Skirmisher 29% | Gunner 20% | Scavenger-Mutant 18% | Mutant Dominant Class ---------------- Mutant | -10/Materials Mutant | -10/Mines Mutant | -9/Materials Scavenger-Mutant | -9/Mines Scavenger-Mutant | -9/Exiles Scavenger-Mutant | -8/Mines Scavenger-Skirmisher | -8/Materials Gunner | -7/Factory Gunner | -7/Lower Caves Gunner | -7/Lower Caves Gunner | -7/Data Miner Resources | -11 -10 -10 -9 -9 -9 -8 -8 -7 -7 -7 -7 ----------- Run | Yrd Mat Min Mat Min Exi Min Mat Fac Low Low Dat Matter Collected 3489 | 268 427 33 345 49 . 53 1011 760 237 106 200 Remotely . | . . . . . . . . . . . . Salvage Created 6509 | 102 677 49 1246 22 . 104 2546 1127 271 50 315 Parts 388 | 4 60 7 78 7 . 7 136 56 20 3 10 Haulers Intercepted 15 | . 2 . 6 . . . 5 2 . . . Recyclers Shooed 7 | . 1 . . . . . 4 2 . . . Parts Field Recycled . | . . . . . . . . . . . . Retrieved Matter . | . . . . . . . . . . . . Parts Self-Destructed 22 | . . . . . . . . . 19 3 . Prevented . | . . . . . . . . . . . . Parts Restored . | . . . . . . . . . . . . Kills | -11 -10 -10 -9 -9 -9 -8 -8 -7 -7 -7 -7 ------- Run | Yrd Mat Min Mat Min Exi Min Mat Fac Low Low Dat Combat Hostiles Destroyed 159 | . 19 4 32 6 . 5 53 25 11 1 3 Melee 1 | . . . . . . . . . . . 1 Guns 138 | . 19 4 31 . . . 46 25 11 1 1 AOE 18 | . . . . 6 . 5 7 . . . . Classes Destroyed 18 | 2 5 1 3 . . . 5 2 . . . Worker 7 | . 1 . . . . . 6 . . . . Builder 7 | . 2 . 1 . . . 2 2 . . . Tunneler 1 | 1 . . . . . . . . . . . Hauler 15 | . 2 . 6 . . . 5 2 . . . Recycler 5 | 1 . . 2 . . . 1 1 . . . Operator 1 | . . . . . . . 1 . . . . Watcher 8 | . . . 1 . . . 4 3 . . . Swarmer 46 | . 9 3 13 6 . 3 3 . 9 . . Cutter 3 | . . . . . . . 3 . . . . Grunt 73 | . 10 . 13 . . 2 31 16 1 . . Brawler 4 | . . . . . . . 3 1 . . . Duelist 1 | . . . 1 . . . . . . . . Protector 1 | . . . . . . . 1 . . . . Sentry 15 | . . . 5 . . . 7 1 1 1 . Demolisher 1 | . . 1 . . . . . . . . . Specialist 5 | . . . . . . . 5 . . . . Hunter 1 | . . . . . . . . 1 . . . Programmer 6 | . . . . . . . . 6 . . . Enhanced Grunt 3 | . . . . . . . . . . . 3 Best Kill Streak 6 | 2 6 4 4 6 . 3 6 6 4 1 2 Combat Bots Only 6 | . 4 4 3 6 . 3 6 5 4 1 2 Max Kills in Single Turn 3 | 1 2 1 2 3 . 3 2 2 2 1 1 Gunslinging 1 | . 1 . 1 . . . . 1 1 . . Exploded 3 | . . . . 3 . 3 2 . . . . Melee 1 | . . . . . . . . . . . 1 Uniques/NPCs Destroyed . | . . . . . . . . . . . . Combat | -11 -10 -10 -9 -9 -9 -8 -8 -7 -7 -7 -7 -------- Run | Yrd Mat Min Mat Min Exi Min Mat Fac Low Low Dat Hostile Shots Fired 769 | . 94 23 134 11 . 5 217 159 50 31 45 Missed 218 | . 25 3 38 4 . 1 57 57 16 5 12 Hits 551 | . 69 20 96 7 . 4 160 102 34 26 33 Melee 21 | . . . 2 . . . 7 1 . 11 . Projectile 530 | . 69 20 94 7 . 4 153 101 34 15 33 AOE 12 | . . 12 . . . . . . . . . Critical Strikes 17 | . 1 . 2 . . 1 6 7 . . . Part Disruptions 3 | . . . . . . . . 1 . . 2 Damage Taken 8523 | . 703 472 1055 58 . 56 2668 1396 365 121 1629 Core 1333 | . 78 114 161 . . . 280 171 8 5 516 Absorbed by Shields 108 | . . . . . . . . 44 32 32 . Regen/Repaired (Parts) 351 | . 163 . 52 . . . 136 . . . . Core Remaining (%) 57 | 100 . 23 . . . 59 49 . . . . Volleys Fired 418 | 4 73 9 87 3 . 3 143 62 14 11 9 Largest 3 | 2 2 2 2 1 . 1 3 3 3 3 3 Hottest 195 | 40 70 80 121 30 . 30 195 158 113 113 156 Shots Fired 1010 | 8 145 18 174 3 . 3 381 186 42 26 24 Gun 985 | 8 145 18 174 . . . 365 186 42 25 22 Cannon 7 | . . . . . . . 4 . . 1 2 Launcher 18 | . . . . 3 . 3 12 . . . . Special . | . . . . . . . . . . . . Kinetic 350 | 8 92 1 22 . . . 102 79 28 15 3 Thermal 625 | . 53 17 152 . . . 267 107 14 11 4 Explosive 18 | . . . . 3 . 3 12 . . . . Electromagnetic 17 | . . . . . . . . . . . 17 Robot Hit Streak 31 | 4 12 4 17 . . . 31 26 14 13 20 Robot Miss Streak 15 | 2 4 3 15 . . . 8 5 6 3 1 Penetration Max 1 | . . . . . . . 1 1 . . . Secondary Targets 19 | . 1 1 3 . . . 5 6 3 . . Max Gunslinging Chain 2 | . 1 1 1 . . . 1 1 2 . . Shots Hit Robots 756 | 4 101 10 131 . . . 279 151 32 21 27 Core Hits 707 | 2 41 7 129 8 . 7 227 208 37 22 19 Critical Kills 2 | . . . . . . . . . 1 . 1 Critical Parts Destroyed 3 | . . . 1 . . . . 1 . . 1 Critical Strikes 26 | . 2 . 3 . . . 17 1 1 . 2 Burn 21 | . 2 . 2 . . . 17 . . . . Destroy 2 | . . . 1 . . . . . 1 . . Smash 3 | . . . . . . . . 1 . . 2 Melee Attacks 33 | . . . . . . . . 10 . . 23 Impact 33 | . . . . . . . . 10 . . 23 Slashing . | . . . . . . . . . . . . Piercing . | . . . . . . . . . . . . Sneak Attacks 3 | . . . . . . . . 3 . . . Combat Hostiles . | . . . . . . . . . . . . Follow-up Attacks . | . . . . . . . . . . . . Damage Inflicted 14759 | 52 1375 139 1769 296 . 317 6216 3112 507 332 644 Guns 12123 | 52 1367 139 1739 . . . 4964 2746 507 332 277 Cannons 70 | . . . . . . . 42 . . . 28 Explosions 1861 | . . . . 269 . 317 1137 . . . 138 Melee 542 | . . . . . . . . 341 . . 201 Ramming 163 | . 8 . 30 27 . . 73 25 . . . Kinetic 3894 | 52 865 12 113 . . . 1304 1039 301 168 40 Thermal 8227 | . 502 127 1626 . . . 3702 1707 206 164 193 Explosive 1723 | . . . . 269 . 317 1137 . . . . Electromagnetic 210 | . . . . . . . . . . . 210 Impact 542 | . . . . . . . . 341 . . 201 Slashing . | . . . . . . . . . . . . Piercing . | . . . . . . . . . . . . Highest Corruption 30 | . . . . . . . . 5 5 5 30 Average Corruption 3 | . . . . . . . . 2 5 5 7 Corruption Purged . | . . . . . . . . . . . . Corruption Blocked . | . . . . . . . . . . . . Effects 69 | . . . . . . . . 34 8 16 11 Message Errors 17 | . . . . . . . . 5 2 5 5 Matter Fused 20 | . . . . . . . . 13 3 1 3 Heat Flow Errors 6 | . . . . . . . . 3 . 1 2 Energy Discharges 12 | . . . . . . . . 8 1 2 1 Parts Fused 1 | . . . . . . . . 1 . . . Data Loss (minor) 6 | . . . . . . . . 2 2 2 . Data Loss (major) 1 | . . . . . . . . . . 1 . Misfires 3 | . . . . . . . . 1 . 2 . Alerts 2 | . . . . . . . . . . 2 . Weapon Failures 1 | . . . . . . . . 1 . . . Overload Shots . | . . . . . . . . . . . . Overflow Damage 218 | . . . 1 23 . . 12 124 . . 58 Projectiles . | . . . . . . . . . . . . Explosions 23 | . . . . 23 . . . . . . . Melee 195 | . . . 1 . . . 12 124 . . 58 Knockbacks 5 | . . . . 1 . . 2 1 . . 1 Impact 5 | . . . . 1 . . 2 1 . . 1 Kinetic . | . . . . . . . . . . . . Secondary . | . . . . . . . . . . . . Self-Inflicted Damage 272 | . . . . . . . 186 . . . 86 Shots 8 | . . . . . . . 7 . . . 1 Rammed 20 | 2 4 . 4 2 . . 7 1 . . . Targets Rammed 23 | 2 4 . 4 2 . . 10 1 . . . Kicked . | . . . . . . . . . . . . Crushed 3 | . . . . . . . 3 . . . . Highest Temperature 431 | . 75 139 264 . . 4 431 220 . 249 155 Average Temperature 74 | . 25 69 51 . . 4 98 92 . 63 54 Received Heat Transfer 2275 | . 291 . 279 . . 45 1107 478 46 29 . Effects 11 | . . . . . . . 11 . . . . Shutdowns 1 | . . . . . . . 1 . . . . Energy Bleed 1 | . . . . . . . 1 . . . . Interference 6 | . . . . . . . 6 . . . . Short Circuit 2 | . . . . . . . 2 . . . . Damage (minor) 1 | . . . . . . . 1 . . . . Siege Activations . | . . . . . . . . . . . . Martial Activations . | . . . . . . . . . . . . Shielding Activations . | . . . . . . . . . . . . Robots Disrupted . | . . . . . . . . . . . . Combat Hostiles . | . . . . . . . . . . . . Robots Corrupted 3 | . . . . . . . 1 1 . . 1 Combat Hostiles 1 | . . . . . . . . . . . 1 Parts Fried 7 | . . . . . . . 1 2 . . 4 Impact Corruptions 4 | . . . 1 . . . 1 1 . . 1 Robots Melted 1 | . . . 1 . . . . . . . . Combat Hostiles 1 | . . . 1 . . . . . . . . Parts Melted 17 | . 1 . 3 . . . 12 1 . . . Heat Transferred 14717 | . 1557 275 2808 . . . 7278 2045 265 205 284 Parts Sabotaged . | . . . . . . . . . . . . Parts Stolen 6 | . . . . . . . . . . 6 . Parts Stripped . | . . . . . . . . . . . . Power Chain Reactions 2 | . . . . . . . . . . . 2 Alert | -11 -10 -10 -9 -9 -9 -8 -8 -7 -7 -7 -7 ------- Run | Yrd Mat Min Mat Min Exi Min Mat Fac Low Low Dat Maximum Alert Level 3 | . . . 2 1 . . 3 2 . . . Low Security (%) 49 | 100 100 100 20 65 . 100 37 44 . . . Level 1 31 | . . . 65 34 . . 27 35 . . . Level 2 18 | . . . 13 . . . 34 19 . . . Level 3 . | . . . . . . . 1 . . . . Level 4 . | . . . . . . . . . . . . Level 5 . | . . . . . . . . . . . . High Security . | . . . . . . . . . . . . Max Security . | . . . . . . . . . . . . Sterilizations 1 | . . . . . . . 1 . . . . Peak Influence 719 | 5 199 128 444 304 . 153 719 442 . . . Initial 326 | . . 58 33 159 . . 55 326 . . . Average 224 | . 122 102 249 168 . 46 291 220 . . . Influence Increases 4787 | 10 575 90 929 215 . 261 1617 800 270 20 . Destroy 0b10 Robot/C 3160 | . 380 80 640 160 . 120 1040 500 220 20 . Destroy 0b10 Robot/NC 225 | 10 25 . 50 . . . 100 40 . . . Destroy Leader 666 | . 74 10 144 30 . 20 238 130 20 . . Allied During Kill 24 | . . . . 8 . 16 . . . . . Successful Hack 103 | . 36 . 19 . . . 17 31 . . . Disable Machine 180 | . . . . . . 75 75 30 . . . Destroy Structure 129 | . . . 1 17 . 30 72 9 . . . Lose Combat Pursuer 300 | . 60 . 75 . . . 75 60 30 . . Influence Decreases 4787 | 10 424 153 609 575 48 118 1043 1077 371 329 30 Entered New Map 1182 | . . 93 55 249 48 . 88 391 163 65 30 Time Decay 3125 | 10 414 30 534 326 . 118 595 646 198 254 . Lost Part 180 | . 10 30 20 . . . 60 40 10 10 . Purge Threat 300 | . . . . . . . 300 . . . . Squads Dispatched 25 | . 3 . 3 . . . 12 7 . . . Investigation 7 | . 2 . 2 . . . 3 . . . . Extermination 5 | . . . . . . . . 5 . . . Reinforcement 10 | . 1 . 1 . . . 7 1 . . . Assault 2 | . . . . . . . 1 1 . . . Garrison 1 | . . . . . . . 1 . . . . Intercept . | . . . . . . . . . . . . Searches Triggered . | . . . . . . . . . . . . Construction Impeded . | . . . . . . . . . . . . Haulers Reinforced . | . . . . . . . . . . . . Active Scanning Responses . | . . . . . . . . . . . . Cargo Convoy Interrupts . | . . . . . . . . . . . . Stealth | -11 -10 -10 -9 -9 -9 -8 -8 -7 -7 -7 -7 --------- Run | Yrd Mat Min Mat Min Exi Min Mat Fac Low Low Dat Distress Signals 11 | . 2 . 1 . . . 7 1 . . . Communications Jammed . | . . . . . . . . . . . . Distress Signals . | . . . . . . . . . . . . Times Spotted 242 | . 39 6 43 8 . 5 79 39 13 6 4 Peak Tracking Total 7 | . 7 3 4 5 . 3 5 5 4 5 2 Tactical Retreats 13 | . 2 . 3 . . . 4 3 1 . . Traps | -11 -10 -10 -9 -9 -9 -8 -8 -7 -7 -7 -7 ------- Run | Yrd Mat Min Mat Min Exi Min Mat Fac Low Low Dat Traps Triggered 9 | . 2 . 1 . . . 3 3 . . . Indirectly . | . . . . . . . . . . . . Trap Hack Attempts . | . . . . . . . . . . . . Triggered . | . . . . . . . . . . . . Disarmed . | . . . . . . . . . . . . Reprogrammed . | . . . . . . . . . . . . Reused . | . . . . . . . . . . . . Traps Extracted . | . . . . . . . . . . . . Installed . | . . . . . . . . . . . . Triggered . | . . . . . . . . . . . . Machines | -11 -10 -10 -9 -9 -9 -8 -8 -7 -7 -7 -7 ---------- Run | Yrd Mat Min Mat Min Exi Min Mat Fac Low Low Dat Machines Disabled 12 | . . . . . . 5 5 2 . . . Max in Single Turn 4 | . . . . . . 4 2 1 . . . Garrison Access 2 | . . . . . . . 1 1 . . . Machines Repaired . | . . . . . . . . . . . . Machines Dismantled . | . . . . . . . . . . . . Machines Sabotaged . | . . . . . . . . . . . . Overloaded Fab Kills . | . . . . . . . . . . . . Hacking | -11 -10 -10 -9 -9 -9 -8 -8 -7 -7 -7 -7 --------- Run | Yrd Mat Min Mat Min Exi Min Mat Fac Low Low Dat Machines Accessed 33 | . 7 . 5 . 2 . 8 8 . . 3 Terminals 19 | . 6 . 4 . . . 5 4 . . . Fabricators 1 | . . . . . . . . 1 . . . Repair Stations 4 | . 1 . 1 . . . 1 1 . . . Recycling Units . | . . . . . . . . . . . . Scanalyzers 2 | . . . . . . . 1 1 . . . Garrison Access 2 | . . . . . . . 1 1 . . . Total Hacks 109 | . 26 . 14 . 2 . 30 19 . . 18 Successful 68 | . 19 . 7 . 2 . 14 8 . . 18 Failed 39 | . 6 . 7 . . . 15 11 . . . Catastrophic 6 | . 1 . 1 . . . 1 3 . . . Database Lockouts 2 | . 1 . . . . . 1 . . . . Manual 38 | . 10 . 7 . 1 . 14 6 . . . Terminals 60 | . 18 . 11 . . . 20 11 . . . Fabricators 2 | . . . . . . . . 2 . . . Repair Stations 19 | . 8 . 3 . . . 4 4 . . . Recycling Units . | . . . . . . . . . . . . Scanalyzers 4 | . . . . . . . 3 1 . . . Garrison Access 4 | . . . . . . . 3 1 . . . Terminal Hacks 42 | . 11 . 3 . 2 . 5 3 . . 18 Record 4 | . 1 . . . 1 . . . . . 2 Part Schematic 9 | . . . . . . . . . . . 9 Robot Schematic 4 | . . . . . . . . . . . 4 Robot Analysis 1 | . 1 . . . . . . . . . . Prototype ID Bank 13 | . 7 . 1 . . . 2 . . . 3 Emergency Access Points 1 | . . . . . . . . 1 . . . Alert Level 3 | . . . 1 . . . 1 1 . . . Unreport Threat 2 | . . . . . . . 2 . . . . Locate Traps 2 | . 2 . . . . . . . . . . Hauler Manifests 1 | . . . 1 . . . . . . . . Zone Layout 1 | . . . . . . . . 1 . . . Proto ID Catalog 1 | . . . . . 1 . . . . . . Fabricator Hacks . | . . . . . . . . . . . . Repair Station Hacks 12 | . 6 . 2 . . . 3 1 . . . Scan Component 7 | . 3 . 1 . . . 2 1 . . . Repair 5 | . 3 . 1 . . . 1 . . . . Recycling Unit Hacks . | . . . . . . . . . . . . Scanalyzer 3 | . . . . . . . 2 1 . . . Retrieve Study 3 | . . . . . . . 2 1 . . . Garrison Access Hacks 2 | . . . . . . . 1 1 . . . Seal Access 2 | . . . . . . . 1 1 . . . Unauthorized Hacks 9 | . 2 . 2 . . . 3 2 . . . Terminals 8 | . 2 . 2 . . . 3 1 . . . Botnet 8 | . 2 . 2 . . . 3 1 . . . Fabricators 1 | . . . . . . . . 1 . . . Haulers 1 | . . . . . . . . 1 . . . Repair Stations . | . . . . . . . . . . . . Recycling Units . | . . . . . . . . . . . . Scanalyzers . | . . . . . . . . . . . . Garrison Access . | . . . . . . . . . . . . Data Cores Recovered 1 | . . . . . . . 1 . . . . Used . | . . . . . . . . . . . . Hacking Detections 23 | . 5 . 5 . . . 6 7 . . . Full Trace Events 2 | . 1 . 1 . . . . . . . . Feedback Events . | . . . . . . . . . . . . Feedback Blocked . | . . . . . . . . . . . . Robot Schematics Acquired 4 | . . . . . . . . . . . 4 Robots Built . | . . . . . . . . . . . . Authchips . | . . . . . . . . . . . . Time . | . . . . . . . . . . . . Total Robot Build Rating . | . . . . . . . . . . . . Part Schematics Acquired 9 | . . . . . . . . . . . 9 Parts Built . | . . . . . . . . . . . . Authchips . | . . . . . . . . . . . . Time . | . . . . . . . . . . . . Total Part Build Rating . | . . . . . . . . . . . . Part Studies Acquired 3 | . . . . . . . 2 1 . . . Parts Repaired 5 | . 3 . 1 . . . 1 . . . . Time 163 | . 78 . 32 . . . 53 . . . . Parts Recycled . | . . . . . . . . . . . . Recycled Matter . | . . . . . . . . . . . . Retrieved Matter . | . . . . . . . . . . . . Retrieved Components . | . . . . . . . . . . . . Parts Scanalyzed . | . . . . . . . . . . . . Part Schematics Acquired . | . . . . . . . . . . . . Parts Damaged . | . . . . . . . . . . . . Bothacking | -11 -10 -10 -9 -9 -9 -8 -8 -7 -7 -7 -7 ------------ Run | Yrd Mat Min Mat Min Exi Min Mat Fac Low Low Dat Used RIF Installer . | . . . . . . . . . . . . Robots Hacked . | . . . . . . . . . . . . Non-combat . | . . . . . . . . . . . . Combat . | . . . . . . . . . . . . Robot Hacks Applied . | . . . . . . . . . . . . Relay Couplers Released . | . . . . . . . . . . . . Fabnet Peak Effective % . | . . . . . . . . . . . . Robots Rewired . | . . . . . . . . . . . . Allies Hacked . | . . . . . . . . . . . . Hacks Repelled . | . . . . . . . . . . . . Allies | -11 -10 -10 -9 -9 -9 -8 -8 -7 -7 -7 -7 -------- Run | Yrd Mat Min Mat Min Exi Min Mat Fac Low Low Dat Total Allies 4 | . . . . 4 . . . . . . . Largest Group 4 | . . . . 4 2 2 2 . . . . Highest-Rated Group 68 | . . . . 68 32 32 32 . . . . Highest-Rated Ally 31 | . . . . 31 16 16 16 . . . . Total Orders . | . . . . . . . . . . . . Ally Attacks 24 | . . . . 9 . 10 5 . . . . Total Damage 281 | . . . . 92 . 105 84 . . . . Kills 3 | . . . . 2 . 1 . . . . . Allies Corrupted . | . . . . . . . . . . . . Allies Melted . | . . . . . . . . . . . . Intel | -11 -10 -10 -9 -9 -9 -8 -8 -7 -7 -7 -7 ------- Run | Yrd Mat Min Mat Min Exi Min Mat Fac Low Low Dat Active Infowar (turns) 1266 | 29 1218 19 . . . . . . . . . Seismic 1266 | 29 1218 19 . . . . . . . . . Robot Analysis Total 154 | . 1 . . . . . . . . . 153 Derelict Logs Recovered 1 | . . . . 1 . . . . . . . Drone Launches . | . . . . . . . . . . . . Drone Recoveries . | . . . . . . . . . . . . Exploration | -11 -10 -10 -9 -9 -9 -8 -8 -7 -7 -7 -7 ------------- Run | Yrd Mat Min Mat Min Exi Min Mat Fac Low Low Dat Turns Passed 11737 | 107 1218 60 1517 737 410 326 3476 2581 415 545 345 Spaces Moved 5753 | 54 542 19 685 454 250 197 1559 1369 228 284 112 Core 5 | 4 . . . . . . . . . . 1 Treads 5733 | 50 542 19 685 454 250 197 1559 1369 228 284 96 Legs 15 | . . . . . . . . . . . 15 Wheels . | . . . . . . . . . . . . Hover . | . . . . . . . . . . . . Flight . | . . . . . . . . . . . . Fastest Speed 50 | 50 160 160 160 160 160 160 156 156 160 160 120 Average Speed 161 | 151 160 160 160 160 160 160 163 159 160 163 192 Slowest Speed 850 | 160 160 160 160 160 160 160 235 160 160 200 850 Overloaded Moves . | . . . . . . . . . . . . Propulsion Burnouts . | . . . . . . . . . . . . Robots Hopped . | . . . . . . . . . . . . Potential Cave-ins . | . . . . . . . . . . . . Cave-ins Triggered . | . . . . . . . . . . . . Exploration Rate (%) 53 | 3 92 12 52 89 61 54 77 32 42 47 78 Regions Visited 11 Branch Regions 7 Pre-discovered Areas 28 | . . . . . 1 . . . . . 27 Known Exits Taken 2 | . . . . 1 . . . 1 . . . Unknown Exits Taken 9 | 1 1 1 1 . 1 1 1 . 1 1 . Scrap Searched 14 | . . . . 2 . 1 . . 2 9 . Spaces Dug 7 | . . . . . . . . 4 . . 3 Terrain Destroyed 181 | . . . . 28 . 44 92 4 . . 13 Melee 7 | . . . . . . . . 4 . . 3 Projectile 4 | . . . . . . . 4 . . . . AOE 170 | . . . . 28 . 44 88 . . . 10 Terrain Rammed . | . . . . . . . . . . . . Walls Destroyed . | . . . . . . . . . . . . Machines Disabled . | . . . . . . . . . . . . Actions | -11 -10 -10 -9 -9 -9 -8 -8 -7 -7 -7 -7 --------- Run | Yrd Mat Min Mat Min Exi Min Mat Fac Low Low Dat Total 7249 | 67 743 31 933 460 260 203 2176 1604 249 344 179 Wait 664 | . 93 . 80 . . . 373 83 4 14 17 Move 5743 | 54 541 18 684 453 249 196 1558 1368 227 283 112 Hop . | . . . . . . . . . . . . Pick Up 79 | 2 6 . 21 . 2 . 15 12 1 18 2 Fast Attach 38 | 6 6 . 8 . . . 7 6 . 1 4 Attach 28 | . 1 2 1 . . . 7 6 1 4 6 Detach 9 | . . . 2 . 1 . 2 3 . . 1 Swap 126 | . 9 1 21 2 5 4 34 37 2 7 4 Drop 89 | . 10 1 25 . 3 . 27 16 . 6 1 Fire 418 | 4 73 9 87 3 . 3 143 62 14 11 9 Melee 33 | . . . . . . . . 10 . . 23 Ram . | . . . . . . . . . . . . Kick . | . . . . . . . . . . . . Crush 22 | 1 4 . 4 2 . . 10 1 . . . Escape Stasis . | . . . . . . . . . . . . Rewire . | . . . . . . . . . . . . Trap . | . . . . . . . . . . . . Miscellaneous . | . . . . . . . . . . . . Route ------- -11/Scrapyard -10/Materials (discovered 5 exits: *Mat x2 / [*Min x2] / [*Sub]) -10/Mines -9/Materials (discovered 3 exits: *Mat / [*Min x2]) -9/Mines (discovered 3 exits: *Mat x2 / *Exi) -9/Exiles -8/Mines -8/Materials (discovered 2 exits: *Fac x2) -7/Factory (discovered 2 exits: *Fac / *Low) -7/Lower Caves -7/Lower Caves (discovered 2 exits: *Fac / *Dat) -7/Data Miner (discovered 1 exit: [*Pro]) History --------- Turn | Location | Event 7 | -11/Scrapyard | Discovered new exit (range 15) 108 | -11/Scrapyard | Entered Materials 233 | -10/Materials | Discovered new exit (range 12) 300 | -10/Materials | Build established: Mutant 371 | -10/Materials | Discovered new exit (range 8) 570 | -10/Materials | Discovered new exit (range 15) 972 | -10/Materials | Repaired Lgt. Treads 1039 | -10/Materials | Repaired Lgt. Ion Engine 1109 | -10/Materials | Repaired Lgt. Treads? 1180 | -10/Materials | Discovered new exit (range 12) 1219 | -10/Materials | Central database locked down 1256 | -10/Materials | Discovered new exit (range 10) 1326 | -10/Materials | Entered Mines 1327 | -10/Mines | Assembled infested the area 1347 | -10/Mines | Core integrity fell below 50% 1367 | -10/Mines | Discovered new exit (range 12) 1383 | -10/Mines | Lost 3 parts (1p1u1w) 1386 | -10/Mines | Entered Materials 1386 | -9/Materials | Evolved 2 slots: Propulsion x1, Utility x1 1775 | -9/Materials | Repaired Spread Laser 1792 | -9/Materials | Discovered new exit (range 7) 1877 | -9/Materials | Discovered new exit (range 8) 2274 | -9/Materials | Discovered new exit (range 15) 2483 | -9/Materials | Build established: Scavenger-Mutant 2903 | -9/Materials | Entered Mines 3021 | -9/Mines | Assisted by bots powering up and referring to "LRC-V3" 3085 | -9/Mines | Discovered new exit (range 6) 3189 | -9/Mines | Discovered new exit (range 6) 3192 | -9/Mines | Received a Mining Laser from a helpful Derelict 3620 | -9/Mines | Identified exit to Exiles 3632 | -9/Mines | Deemed a non-threat by the Exiles lab entrance 3640 | -9/Mines | Entered Exiles 3640 | -9/Exiles | Accompanied by 2 allies 3679 | -9/Exiles | Met 8R-AWN 3708 | -9/Exiles | Met EX-HEX 3754 | -9/Exiles | Met EX-BIN 3776 | -9/Exiles | Aligned with FarCom system 3778 | -9/Exiles | Given EX-Vault access code 3815 | -9/Exiles | Opened EX-Vault 3828 | -9/Exiles | Found Skeleton Box 3839 | -9/Exiles | Found Modified TNC 3845 | -9/Exiles | Found 0b10 Alert Chip 3878 | -9/Exiles | Warned to stay clear of 0b10 Research branches 3889 | -9/Exiles | Exiles lab attacked by MAIN.C 3934 | -9/Exiles | Learned location of Zion (-6) 4037 | -9/Exiles | Discovered new exit (range 10) 4050 | -9/Exiles | Stole two prototypes: Modified TNC, 0b10 Alert Chip 4050 | -9/Exiles | Entered Mines 4050 | -8/Mines | Accompanied by 2 allies 4353 | -8/Mines | Discovered new exit (range 13) 4376 | -8/Mines | Entered Materials 4376 | -8/Materials | Accompanied by 2 allies 4376 | -8/Materials | Evolved 2 slots: Propulsion x1, Weapon x1 4626 | -8/Materials | Build established: Scavenger-Skirmisher 6705 | -8/Materials | Repaired Broken Adv. Treads 6773 | -8/Materials | Central database locked down 6776 | -8/Materials | First assault squad dispatched 7059 | -8/Materials | Garrison activated, responded to threat 7069 | -8/Materials | Discovered new exit (range 5) 7407 | -8/Materials | Discovered new exit (range 8) 7417 | -8/Materials | Found Prototype Launcher 7417 | -8/Materials | Identified Rocket Array 7655 | -8/Materials | Sterilization system engaged 7655 | -8/Materials | Non-combat units ordered to evacuate 7755 | -8/Materials | Combat units ordered to evacuate 7801 | -8/Materials | Core integrity fell below 50% 7852 | -8/Materials | Entered Factory 7852 | -7/Factory | Evolved 2 slots: Utility x2 7854 | -7/Factory | FarCom data flow suspended 8350 | -7/Factory | Discovered new exit (range 16) 8382 | -7/Factory | Identified exit to Factory 8458 | -7/Factory | Build established: Gunner 8838 | -7/Factory | Discovered new exit (range 7) 10149 | -7/Factory | Identified exit to Lower Caves 10252 | -7/Factory | First assault squad dispatched 10433 | -7/Factory | Entered Lower Caves 10435 | -7/Lower Caves | Attracted the attention of an 0b10 checkpoint 10824 | -7/Lower Caves | Discovered new exit (range 4) 10848 | -7/Lower Caves | Entered another Lower Caves area 10849 | -7/Lower Caves | Encountered a Warlord checkpoint 10921 | -7/Lower Caves | Discovered exit to Factory (range 8) 11069 | -7/Lower Caves | Attracted the attention of an 0b10 checkpoint 11277 | -7/Lower Caves | Encountered a Master Thief 11278 | -7/Lower Caves | Encountered a Master Thief 11278 | -7/Lower Caves | Encountered a Master Thief 11278 | -7/Lower Caves | Encountered a Master Thief 11279 | -7/Lower Caves | Encountered a Master Thief 11280 | -7/Lower Caves | Minigun stolen by Master Thief 11281 | -7/Lower Caves | Med. Treads stolen by Master Thief 11282 | -7/Lower Caves | Imp. Cooling System stolen by Master Thief 11282 | -7/Lower Caves | Med. Treads stolen by Master Thief 11297 | -7/Lower Caves | Imp. Deuterium Engine stolen by Master Thief 11377 | -7/Lower Caves | Discovered new exit (range 8) 11393 | -7/Lower Caves | Entered Data Miner 11393 | -7/Data Miner | Discovered new exit (range 6) 11435 | -7/Data Miner | Met Data Miner 11479 | -7/Data Miner | Learned location of Section 7 (-3) 11479 | -7/Data Miner | Acquired the access code to Warlord's prototype stash 11503 | -7/Data Miner | Received God Mode back door access code from Data Miner 11523 | -7/Data Miner | Interfaced with the Data Conduit 11661 | -7/Data Miner | Core integrity fell below 50% 11686 | -7/Data Miner | Core integrity fell below 20% 11707 | -7/Data Miner | System corruption reached 10% 11715 | -7/Data Miner | System corruption reached 30% 11724 | -7/Data Miner | Lost 7 parts (1p1n2u3w) 11738 | -7/Data Miner | Destroyed by Enhanced Grunt with Neutron Cannon Last Messages --------------- 11694_ Enhanced Grunt destroyed. 11697_ Acquired 43 matter. 11706_ Dropped Med. Treads+. 11706_ Integrated Corrupted Enh. Flexi-carbon Leg (+10). 11707_ Acquired 10 matter. 11707_ Integrated Corrupted Enh. Flexi-carbon Leg (+3). 11707_ Complication: System interference. 11707_ Mak. Salvage Targeting Computer temporarily disabled. 11708_ Acquired 10 matter. 11710_ System corrupted: Heat flow error (+181). 11712_ Acquired Corrupted Enh. Flexi-carbon Leg. 11712_ Integrated Corrupted Enh. Flexi-carbon Leg (+9). 11714_ Acquired Corrupted Enh. Flexi-carbon Leg. 11714_ Integrated Corrupted Enh. Flexi-carbon Leg (+3). 11714_ Corrupted Enh. Flexi-carbon Leg temporarily disabled. 11716_ Acquired 20 matter. 11722_ Acquired Antimatter Reactor. 11724_ Acquired 10 matter. 11726_ Acquired Lyr. Medium Armor Plating. 11728_ ZWK>Z7FNX S9M6%JY9# #HCY Map ----- +----------------------------------------------------+ | | | | | | | | | | | | | | | | | | | | | ???????????????????????????????? | | ???????????????????????????????? | | ???????????????????????????????? | | ???????????????????????????????? | | ???????????????????????????????? | | ????#################??????????? | | ???##"""""""""""""""######?????? | | ??##"""" """" """"""""####### | | ??#"" % " | | ?##"" | | ?#; = | | ##; !%! | | # ; | | # ;! ! g """""""" | | """"###### | | @" """""###????? | | ## ;; """""" "#####??????? | | ?## #;######"## "#??????????? | | ??####?????#"### "#??????????? | | ???????????#"### "#??????????? | | ???????????#"## "#??????????? | | ???????????#?## "#??????????? | | ?????????????# "#??????????? | | ?????????????### "#??????????? | | ???????????????# "##?????????? | | ??????????????## ""#?????????? | | ?????????????## ""#?????????? | | ??????????##"#"X ""#?????????? | | ??????????""""" "####??????? | | ??????????""""" X"""""??????? | | ??????????##"#"X "##"#??????? | | ???????????#?## X""""#??????? | | ??????????????## "##"#??????? | | ???????????????#######?????????? | | ???????????????????????????????? | | ???????????????????????????????? | | ???????????????????????????????? | | ???????????????????????????????? | | ???????????????????????????????? | | ???????????????????????????????? | +----------------------------------------------------+ Best States ------------- Heat Dissipation 61 Coolant Potential 65 Energy Generation 21 Energy Capacity 325 Matter Stores 300 Matter Capacity 300 Sight Range 16 Terrain Scan Density 10 Armor Coverage 450 Evasion (%) 45 Targeting Accuracy 8 Core Analysis 6 Recoil Reduction 4 Salvage Targeting 4 Item Schematics ----------------- Combat Drone Bay | -7/Data Miner | Free Lgt. Regenerative Plating | -7/Data Miner | Free Cld. Aerolev Unit | -7/Data Miner | Free Gravity Neutralizer | -7/Data Miner | Free Scatter Rocket Array | -7/Data Miner | Free Hvy. Treads | -7/Data Miner | Free Adv. Recoil Stabilizer | -7/Data Miner | Free Adv. Plasma Cannon | -7/Data Miner | Free Imp. Linear Gravjet | -7/Data Miner | Free Robot Schematics ------------------ R-10 Processor | -7/Data Miner | Free H-66 Slayer | -7/Data Miner | Free L-41 Fighter | -7/Data Miner | Free G-47 Trooper | -7/Data Miner | Free Fabricated ------------ Nothing Repaired ---------- Lgt. Treads | 69% | -10/Materials Lgt. Ion Engine | 32% | -10/Materials Lgt. Treads | 33% | -10/Materials Spread Laser | 35% | -9/Materials Adv. Treads | 20% | -8/Materials | Broken Studied --------- Lgt. Treads | -8/Materials | Hacked Spread Laser | -8/Materials | Hacked Med. Treads | -7/Factory | Hacked Alien Tech Used ----------------- None Achievements -------------- None Challenges ------------ None Game ------ Seed ChaosMeleeMegashotty Manual? 0 Play Time 01:09:42 Cumulative 582.1 hours Start 2026.08.12 @ 11:19:58 End 2026.08.12 @ 12:57:48 Sessions 1 Manual Loads 0 Difficulty Rogue Special Mode None Game No. 244 Rogue 244 Adventurer 0 Explorer 0 Win Type - Total 35 Types 16/4/4/2/1/2/2/2/1/1 Lore% 90 Gallery% 82 Achievement% 78 Wizard Run 0 Options --------- Layout 0 ASCII 0 Keyboard 1 Movement Arrows Keybinds 0 Fullscreen 2 Font 18/Terminus Map View 76x50 Zoom Use 0% Tactical HUD 1 Map Filters BRIGHTNESS(90)|SATURATION(90) Filters NONE Steam 1 RUN: a70ea56f-7849-41c6-b040-027b1f780f24